bitfinex/quotes_BTCUSD_20250422
["timestamp","ask_amount","ask_price","bid_price","bid_amount"]
[1745356127889,0.0014239,91236.0,91234.0,0.2671068]
[1745356128129,0.0014239,91236.0,91235.0,0.00760957]
[1745356128433,0.0024239,91236.0,91235.0,0.00980132]
[1745356128608,0.0034239,91236.0,91235.0,0.00980132]
[1745356128789,0.0014239,91236.0,91235.0,0.00980132]
[1745356129601,0.0014239,91236.0,91235.0,0.03786428]
[1745356129984,0.0004239,91236.0,91235.0,0.03786428]
[1745356130323,0.0004239,91236.0,91235.0,0.00980132]
[1745356130528,0.0004239,91236.0,91235.0,0.01820265]
[1745356130726,0.005,91259.0,91241.0,0.23015727]
[1745356130952,0.005,91259.0,91247.0,0.21918528]
[1745356131287,0.005,91259.0,91246.0,0.21918758]
[1745356131495,0.005,91259.0,91245.0,0.21918776]
[1745356131911,0.005,91259.0,91243.0,0.21919446]
[1745356132136,0.005,91259.0,91247.0,0.001]
[1745356132336,0.005,91259.0,91247.0,0.003]
[1745356133030,0.005,91259.0,91247.0,0.001]
[1745356133553,0.005,91259.0,91245.0,0.002]
[1745356133759,0.005,91259.0,91245.0,0.004]
[1745356134057,0.005,91259.0,91245.0,0.002]
[1745356134558,0.005,91259.0,91247.0,0.002]
[1745356134906,0.005,91259.0,91247.0,0.001]
[1745356135710,0.005,91259.0,91245.0,0.002]
[1745356135711,0.005,91259.0,91246.0,0.21918672]
[1745356135911,0.005,91259.0,91247.0,0.001]
[1745356136573,0.005,91259.0,91247.0,0.002]
[1745356137210,0.005,91259.0,91247.0,0.22118528]
[1745356142509,0.005,91259.0,91247.0,0.22337678]
[1745356143194,0.005,91259.0,91247.0,0.22118528]
[1745356147001,0.005,91259.0,91247.0,0.22337678]
[1745356147208,0.005,91259.0,91247.0,0.22118528]
[1745356148972,0.005,91259.0,91247.0,0.22337679]
[1745356149807,0.005,91259.0,91247.0,0.22118528]
[1745356150060,0.005,91259.0,91247.0,0.2288483]
[1745356161540,0.005,91259.0,91247.0,0.00966302]
[1745356161740,0.005,91259.0,91247.0,0.002]
[1745356161939,0.005,91259.0,91247.0,0.22118528]
[1745356162343,0.005,91259.0,91247.0,0.002]
[1745356162557,0.005,91259.0,91247.0,0.22118528]
[1745356163902,0.005,91259.0,91247.0,0.002]
[1745356164312,0.005,91259.0,91247.0,0.22118528]
[1745356165213,0.005,91259.0,91247.0,0.22886031]
[1745356165638,0.005,91259.0,91247.0,0.00426028]
[1745356166021,0.005,91259.0,91247.0,0.22344556]
[1745356166199,0.005,91259.0,91247.0,0.21918528]
[1745356168122,0.005,91259.0,91246.0,0.4135]
[1745356168326,0.005,91259.0,91246.0,0.63268545]
[1745356168623,0.005,91259.0,91246.0,0.4135]
[1745356168829,0.005,91259.0,91246.0,0.63268585]
[1745356169532,0.005,91259.0,91245.0,0.21918986]
[1745356169746,0.005,91259.0,91243.0,0.0146132]
[1745356169747,0.0496,91250.0,91243.0,0.0146132]
[1745356169964,0.0496,91250.0,91243.0,0.21919482]
[1745356170331,0.0496,91250.0,91246.0,0.001]
[1745356170535,0.0496,91250.0,91242.0,0.01465776]
[1745356170697,0.0496,91250.0,91245.0,0.001]
[1745356170910,0.16718897,91247.0,91245.0,0.001]
[1745356171155,0.16718897,91247.0,91238.0,0.01478904]
[1745356171364,0.16718897,91247.0,91243.0,0.001]
[1745356171774,0.16718897,91247.0,91245.0,0.001]
[1745356172180,0.16718897,91247.0,91243.0,0.001]
[1745356173050,0.16718897,91247.0,91245.0,0.001]
[1745356173918,0.16718897,91247.0,91234.0,0.21921637]
[1745356174436,0.16818897,91247.0,91234.0,0.21921637]
[1745356174638,0.16818897,91247.0,91234.0,0.23432992]
[1745356175043,0.16718897,91247.0,91234.0,0.23432992]
[1745356175244,0.16718897,91247.0,91234.0,0.23832992]
[1745356175653,0.16718897,91247.0,91234.0,0.01911355]
[1745356176999,0.0475,91243.0,91234.0,0.01911355]
[1745356177175,0.01095878,91251.0,91234.0,0.01911355]
[1745356177176,0.0475,91240.0,91234.0,0.01911355]
[1745356177350,0.0473,91241.0,91234.0,0.01911355]
[1745356177351,0.0475,91238.0,91234.0,0.01911355]
[1745356177544,0.11375594,91239.0,91234.0,0.01911355]
[1745356177545,0.0475,91236.0,91234.0,0.01911355]
[1745356177749,0.0948,91236.0,91235.0,0.00767608]
[1745356177948,0.20855594,91236.0,91235.0,0.00767608]
[1745356178156,0.22409679,91236.0,91235.0,0.00767608]
[1745356178904,0.22609679,91236.0,91235.0,0.00767608]
[1745356179217,0.12929679,91236.0,91201.0,0.08895659]
[1745356179437,0.01454085,91229.0,91219.0,0.01370265]
[1745356179636,0.0473,91225.0,91219.0,0.01370265]
[1745356179837,0.11375594,91224.0,91219.0,0.01370265]
[1745356180071,0.11375594,91224.0,91201.0,0.08895659]
[1745356180264,0.06204085,91223.0,91201.0,0.08895659]
[1745356180462,0.01454085,91221.0,91201.0,0.08895659]
[1745356180667,0.01454085,91219.0,91203.0,0.21929089]
[1745356180876,0.0475,91223.0,91212.0,0.10328024]
[1745356180877,0.11375594,91218.0,91212.0,0.10328024]
[1745356181091,0.11375594,91218.0,91212.0,0.10428024]
[1745356181287,0.00559697,91217.0,91212.0,0.10428024]
[1745356181502,0.11375594,91216.0,91212.0,0.10328024]
[1745356181861,0.00558699,91215.0,91212.0,0.10328024]
[1745356182060,0.11375594,91214.0,91212.0,0.10328024]
[1745356182499,0.00557701,91213.0,91212.0,0.10328024]
[1745356182759,0.11933295,91213.0,91212.0,0.10328024]
[1745356183146,0.11933295,91213.0,91212.0,0.01432365]
[1745356183504,0.11933295,91213.0,91201.0,0.30825209]
[1745356183710,0.11933295,91213.0,91202.0,0.21929145]
[1745356183918,0.11375594,91213.0,91202.0,0.21929145]
[1745356184121,0.11475594,91213.0,91203.0,0.21929079]
[1745356184904,0.11375594,91213.0,91203.0,0.21929079]
[1745356185369,0.11375594,91213.0,91203.0,0.001]
[1745356185723,0.11375594,91213.0,91203.0,0.002]
[1745356186932,0.11375594,91213.0,91201.0,0.0824865]
[1745356187845,0.11375594,91213.0,91203.0,0.2192897]
[1745356188831,0.11375594,91213.0,91201.0,0.0824865]
[1745356189672,0.11375594,91213.0,91202.0,0.21929149]
[1745356190047,0.11375594,91213.0,91203.0,0.001]
[1745356190274,0.11375594,91213.0,91202.0,0.21929149]
[1745356193791,0.11375594,91213.0,91201.0,0.23325643]
[1745356194806,0.11375594,91213.0,91201.0,0.01396501]
[1745356195008,0.11375594,91213.0,91201.0,0.2202935]
[1745356195215,0.11375594,91213.0,91202.0,0.21929119]
[1745356195415,0.11375594,91213.0,91201.0,0.2202935]
[1745356195803,0.11375594,91213.0,91201.0,0.23441511]
[1745356196008,0.11375594,91213.0,91201.0,0.23541511]
[1745356196552,0.11375594,91213.0,91201.0,0.23441511]
[1745356197076,0.11375594,91213.0,91202.0,0.001]
[1745356197247,0.11375594,91213.0,91201.0,0.23441511]
[1745356197673,0.11375594,91213.0,91201.0,0.23541511]
[1745356201120,0.11375594,91213.0,91203.0,0.21929064]
[1745356201321,0.11375594,91213.0,91201.0,0.01612161]
[1745356201442,0.11375594,91213.0,91201.0,0.23541618]
[1745356201847,0.11375594,91213.0,91202.0,0.21929317]
[1745356202111,0.11375594,91213.0,91201.0,0.23541618]
[1745356202112,0.11375594,91213.0,91201.0,0.01612161]
[1745356202911,0.11375594,91213.0,91201.0,0.01412161]
[1745356203105,0.11375594,91213.0,91202.0,0.001]
[1745356203819,0.15945594,91212.0,91202.0,0.001]
[1745356204020,0.15945594,91212.0,91201.0,0.01408943]
[1745356204021,0.0492,91211.0,91201.0,0.01508943]
[1745356204244,0.11375594,91210.0,91201.0,0.01608943]
[1745356204380,0.11926554,91210.0,91201.0,0.002]
[1745356204582,0.11926554,91210.0,91199.0,0.000847]
[1745356204952,0.11926554,91210.0,91202.0,0.001]
[1745356205581,0.01454085,91205.0,91202.0,0.001]
[1745356205790,0.10944085,91203.0,91202.0,0.001]
[1745356205992,0.10944085,91203.0,91199.0,0.000847]
[1745356205993,0.21929824,91200.0,91199.0,0.000847]
[1745356206198,0.22319679,91200.0,91199.0,0.000847]
[1745356206608,0.22857889,91200.0,91199.0,0.001847]
[1745356207002,0.25927488,91200.0,91199.0,0.000847]
[1745356207416,0.26527488,91200.0,91199.0,0.000847]
[1745356207936,0.26527488,91200.0,91199.0,0.000357]
[1745356208393,0.37579488,91200.0,91199.0,0.000357]
[1745356209167,0.27127488,91200.0,91199.0,0.000357]
[1745356209389,0.35533089,91200.0,91199.0,0.000357]
[1745356213169,0.34509889,91200.0,91199.0,0.000357]
[1745356223605,0.24057889,91200.0,91199.0,0.000357]
[1745356223807,0.34581889,91200.0,91199.0,0.000357]
[1745356225621,0.34581889,91200.0,91199.0,0.01401828]
[1745356225823,0.34581889,91200.0,91199.0,0.000357]
[1745356230728,0.01454085,91199.0,91192.0,0.000847]
[1745356230948,0.01454085,91196.0,91192.0,0.000847]
[1745356231157,0.01454085,91194.0,91192.0,0.000847]
[1745356231372,0.12829679,91193.0,91192.0,0.000847]
[1745356231590,0.13313259,91193.0,91192.0,0.000847]
[1745356231799,0.23837259,91193.0,91192.0,0.000847]
[1745356232345,0.23837259,91193.0,91192.0,0.01515488]
[1745356232555,0.24337259,91193.0,91192.0,0.01515488]
[1745356233815,0.24737259,91193.0,91192.0,0.01515488]
[1745356234021,0.24737259,91193.0,91192.0,0.000847]
[1745356234229,0.14213259,91193.0,91192.0,0.000847]
[1745356234453,0.24737259,91193.0,91192.0,0.000847]
[1745356236777,0.24737259,91193.0,91192.0,0.01468882]
[1745356237819,0.12759174,91193.0,91192.0,0.01568882]
[1745356238039,0.0453,91228.0,91211.0,0.21927141]
[1745356238289,0.0453,91246.0,91223.0,0.21924245]
[1745356238505,0.00013855,91237.0,91229.0,0.01096142]
[1745356238720,0.00013855,91237.0,91227.0,0.34437676]
[1745356238960,0.11375594,91236.0,91220.0,0.25542017]
[1745356239587,0.11375594,91236.0,91220.0,0.47466966]
[1745356239713,0.11375594,91236.0,91221.0,0.21924749]
[1745356240158,0.11375594,91236.0,91223.0,0.21924277]
[1745356240537,0.11375594,91236.0,91229.0,0.002]
[1745356240945,0.11375594,91236.0,91223.0,0.21924277]
[1745356241354,0.00658907,91235.0,91223.0,0.22224277]
[1745356241585,0.11375594,91234.0,91223.0,0.22224277]
[1745356242253,0.11375594,91234.0,91224.0,0.21923928]
[1745356242469,0.00657411,91233.0,91225.0,0.21923708]
[1745356242668,0.11375594,91232.0,91225.0,0.21923708]
[1745356242888,0.11375594,91232.0,91223.0,0.013]
[1745356243087,0.11375594,91232.0,91223.0,0.005]
[1745356243333,0.11375594,91232.0,91223.0,0.008]
[1745356243512,0.11375594,91232.0,91224.0,0.004]
[1745356244967,0.11375594,91232.0,91224.0,0.007]
[1745356245104,0.11375594,91232.0,91224.0,0.003]
[1745356245757,0.11375594,91232.0,91224.0,0.2222403]
[1745356245975,0.11375594,91232.0,91224.0,0.2282403]
[1745356246574,0.11375594,91232.0,91224.0,0.009]
[1745356246784,0.23377783,91226.0,91224.0,0.009]
[1745356247033,0.0211,91231.0,91224.0,0.009]
[1745356247034,0.12829679,91225.0,91224.0,0.009]
[1745356247249,0.5001492,91225.0,91224.0,0.009]
[1745356247604,0.5001492,91225.0,91224.0,0.006]
[1745356248087,0.5001492,91225.0,91224.0,0.009]
[1745356248363,0.5001492,91225.0,91224.0,0.003]
[1745356248668,0.50839424,91225.0,91224.0,0.003]
[1745356249195,0.01454085,91216.0,91192.0,0.01397256]
[1745356249400,0.01454085,91212.0,91193.0,0.08895659]
[1745356249548,0.01454085,91210.0,91193.0,0.08895659]
[1745356249746,0.01454085,91208.0,91193.0,0.08895659]
[1745356249933,0.01454085,91206.0,91193.0,0.08895659]
[1745356250265,0.12014688,91205.0,91193.0,0.08895659]
[1745356250852,0.12028535,91205.0,91193.0,0.08895659]
[1745356251051,0.12028535,91205.0,91193.0,0.08995659]
[1745356251634,0.12028535,91205.0,91193.0,0.09195659]
[1745356252031,0.12028535,91205.0,91193.0,0.09395659]
[1745356252167,0.12028535,91205.0,91193.0,0.09295659]
[1745356252367,0.12028535,91205.0,91193.0,0.09195659]
[1745356252578,0.12028535,91205.0,91193.0,0.09395659]
[1745356252980,0.12028535,91205.0,91193.0,0.09295659]
[1745356253182,0.12028535,91205.0,91193.0,0.09395659]
[1745356254015,0.11389441,91205.0,91193.0,0.09395659]
[1745356256051,0.00645862,91204.0,91193.0,0.09395659]
[1745356256251,0.11375594,91203.0,91193.0,0.09395659]
[1745356256846,0.12020708,91203.0,91193.0,0.09295659]
[1745356257045,0.12020708,91203.0,91193.0,0.09395659]
[1745356257711,0.12020708,91203.0,91193.0,0.005]
[1745356257878,0.11375594,91203.0,91193.0,0.005]
[1745356258125,0.11375594,91203.0,91193.0,0.001]
[1745356258319,0.11375594,91203.0,91193.0,0.002]
[1745356258680,0.11375594,91203.0,91193.0,0.003]
[1745356258876,0.0071103,91202.0,91193.0,0.003]
[1745356259237,0.11375594,91201.0,91193.0,0.003]
[1745356259441,0.11375594,91201.0,91193.0,0.005]
[1745356259601,0.12085875,91201.0,91193.0,0.005]
[1745356259807,0.12085875,91201.0,91192.0,0.01397256]
[1745356260013,0.12085875,91201.0,91193.0,0.002]
[1745356260586,0.01454085,91200.0,91193.0,0.003]
[1745356260791,0.01454085,91194.0,91193.0,0.003]
[1745356261085,0.54497292,91194.0,91193.0,0.003]
[1745356261351,0.54497292,91194.0,91171.0,0.01812295]
[1745356261352,0.01096755,91178.0,91171.0,0.005]
[1745356261553,0.12829679,91176.0,91171.0,0.005]
[1745356261907,0.13517122,91176.0,91171.0,0.005]
[1745356262551,0.14351202,91176.0,91171.0,0.005]
[1745356262901,0.14751202,91176.0,91175.0,0.00130857]
[1745356266320,0.13917122,91176.0,91175.0,0.00130857]
[1745356267090,0.24149122,91176.0,91175.0,0.00130857]
[1745356269501,0.24959509,91176.0,91175.0,0.00130857]
[1745356270758,0.24959509,91176.0,91171.0,0.005]
[1745356270759,0.28490644,91172.0,91171.0,0.005]
[1745356270965,0.28490644,91172.0,91164.0,0.0008472]
[1745356270966,0.62492328,91165.0,91164.0,0.0008472]
[1745356271193,0.6249281,91163.0,91162.0,0.0008472]
[1745356271420,0.40554085,91162.0,91161.0,0.0008472]
[1745356271662,0.51929679,91162.0,91161.0,0.0008472]
[1745356271877,0.53565607,91162.0,91161.0,0.0008472]
[1745356272110,0.58475607,91162.0,91161.0,0.0008472]
[1745356272601,0.62494254,91157.0,91141.0,0.005]
[1745356272811,0.73869848,91157.0,91141.0,0.005]
[1745356273028,0.74485083,91157.0,91141.0,0.005]
[1745356274459,0.75285083,91157.0,91156.0,0.0018476]
[1745356274893,1.16185083,91157.0,91156.0,0.0008476]
[1745356275308,1.24126865,91157.0,91156.0,0.0018476]
[1745356275583,1.24126865,91157.0,91141.0,0.005]
[1745356275584,0.62497142,91145.0,91141.0,0.005]
[1745356275761,1.34984736,91145.0,91141.0,0.005]
[1745356275963,0.93784736,91145.0,91141.0,0.005]
[1745356276984,0.93784736,91145.0,91144.0,0.00098656]
[1745356277160,0.9411139,91145.0,91144.0,0.00098656]
[1745356277361,0.9421139,91145.0,91144.0,0.00098656]
[1745356277588,1.03197869,91145.0,91144.0,0.00098656]
[1745356277944,1.05741998,91145.0,91144.0,0.00098656]
[1745356278144,1.07241998,91145.0,91144.0,0.00198656]
[1745356278407,1.06741998,91145.0,91144.0,0.00198656]
[1745356278779,1.06441998,91145.0,91144.0,0.00098656]
[1745356278963,1.05741998,91145.0,91144.0,0.00098656]
[1745356279163,1.06741998,91145.0,91144.0,0.00198656]
[1745356279571,1.08069325,91145.0,91144.0,0.00198656]
[1745356279774,0.97929546,91145.0,91144.0,0.00198656]
[1745356280531,0.0255137,91134.0,91121.0,0.08895659]
[1745356280742,0.12829679,91122.0,91121.0,0.08895659]
[1745356280945,0.22937679,91122.0,91121.0,0.08909517]
[1745356281759,0.12829679,91122.0,91121.0,0.00013858]
[1745356281905,0.21583594,91122.0,91121.0,0.00113858]
[1745356283833,0.21483594,91122.0,91121.0,0.00113858]
[1745356284235,0.11575594,91122.0,91121.0,0.00113858]
[1745356284475,0.21687594,91122.0,91121.0,0.00113858]
[1745356285066,0.11575594,91122.0,91121.0,0.00113858]
[1745356285236,0.002,91122.0,91121.0,0.00613857]
[1745356285688,0.002,91122.0,91121.0,0.22562694]
[1745356285876,0.46284,91138.0,91132.0,0.00499999]
[1745356286078,0.11375594,91137.0,91132.0,0.00499999]
[1745356288721,0.11375594,91137.0,91132.0,0.00899999]
[1745356290187,0.11375594,91137.0,91132.0,0.00799999]
[1745356290981,0.11375594,91137.0,91132.0,0.003]
[1745356291184,0.11375594,91137.0,91132.0,0.00899999]
[1745356292422,0.11375594,91137.0,91133.0,0.0474]
[1745356294439,0.11375594,91137.0,91133.0,0.0494]
[1745356294738,0.11375594,91137.0,91133.0,0.0474]
[1745356294896,0.11375594,91137.0,91133.0,0.0494]
[1745356295483,0.11375594,91137.0,91133.0,0.0649555]
[1745356295683,0.11375594,91137.0,91134.0,0.21945626]
[1745356295924,0.11375594,91137.0,91133.0,0.28441384]
[1745356296329,0.11375594,91137.0,91133.0,0.0649555]
[1745356296913,0.10108,91144.0,91133.0,0.0609555]
[1745356297110,0.11375594,91143.0,91133.0,0.0629555]
[1745356297312,0.11375594,91143.0,91133.0,0.0609555]
[1745356297647,0.11375594,91143.0,91133.0,0.0629555]
[1745356297849,0.11375594,91143.0,91133.0,0.0609555]
[1745356298748,0.11375594,91143.0,91133.0,0.0629555]
[1745356299851,0.11375594,91143.0,91133.0,0.0609555]
[1745356300252,0.11375594,91143.0,91133.0,0.0629555]
[1745356300832,0.11375594,91143.0,91133.0,0.0609555]
[1745356301650,0.11375594,91143.0,91133.0,0.0629555]
[1745356301851,0.11375594,91143.0,91133.0,0.0609555]
[1745356303375,0.11375594,91143.0,91133.0,0.0629555]
[1745356304141,0.11375594,91143.0,91133.0,0.0609555]
[1745356304665,0.11375594,91143.0,91133.0,0.0619555]
[1745356305272,0.11375594,91143.0,91133.0,0.0609555]
[1745356305676,0.11475594,91143.0,91133.0,0.0609555]
[1745356306595,0.11475594,91143.0,91133.0,0.0619555]
[1745356306772,0.11375594,91143.0,91133.0,0.0619555]
[1745356306954,0.11475594,91143.0,91133.0,0.0619555]
[1745356307159,0.11475594,91143.0,91133.0,0.0629555]
[1745356307361,0.11475594,91143.0,91133.0,0.0609555]
[1745356307562,0.0102259,91156.0,91149.0,0.00499999]
[1745356307785,0.11375594,91155.0,91149.0,0.00499999]
[1745356309779,0.000849,91180.0,91150.0,0.0462]
[1745356309980,0.01467933,91167.0,91159.0,0.38880985]
[1745356310251,0.11375594,91166.0,91159.0,0.38880985]
[1745356311691,0.11575594,91166.0,91159.0,0.38880985]
[1745356311910,0.002,91166.0,91165.0,0.22438242]
[1745356312053,0.002,91166.0,91165.0,0.27058242]
[1745356312900,0.00013848,91167.0,91166.0,0.21938003]
[1745356313311,0.00013848,91167.0,91166.0,0.22438002]
[1745356313804,0.00013848,91167.0,91166.0,0.00499999]
[1745356314123,0.00013848,91167.0,91166.0,0.00799999]
[1745356314691,0.00013848,91167.0,91166.0,0.22838002]
[1745356315958,0.00013848,91167.0,91166.0,0.22438002]
[1745356316195,0.00013848,91167.0,91166.0,0.22738002]
[1745356316399,0.00013848,91167.0,91166.0,0.32188002]
[1745356316752,0.00013848,91167.0,91166.0,0.32388002]
[1745356316953,0.00013848,91167.0,91166.0,0.32488002]
[1745356317555,0.00013848,91167.0,91166.0,0.31788002]
[1745356317759,0.00013848,91167.0,91166.0,0.32188002]
[1745356318357,1e-08,91167.0,91166.0,0.32188002]
[1745356318879,1e-08,91167.0,91166.0,0.32488002]
[1745356319038,1e-08,91167.0,91166.0,0.32088002]
[1745356319239,1e-08,91167.0,91166.0,0.32388002]
[1745356319464,1e-08,91167.0,91166.0,0.32688002]
[1745356320028,1e-08,91167.0,91166.0,0.32388002]
[1745356320585,1e-08,91167.0,91166.0,0.32088002]
[1745356321335,1e-08,91167.0,91166.0,0.32388002]
[1745356321973,1e-08,91167.0,91166.0,0.32088002]
[1745356322859,1e-08,91167.0,91166.0,0.32388002]
[1745356327895,1e-08,91167.0,91166.0,0.31888003]
[1745356328104,1e-08,91167.0,91166.0,0.27648002]
[1745356328313,1e-08,91167.0,91166.0,0.006]
[1745356328504,0.11375595,91167.0,91166.0,0.006]
[1745356328915,0.12033023,91167.0,91166.0,0.006]
[1745356329116,0.12033023,91167.0,91161.0,0.00499999]
[1745356329319,0.11375594,91166.0,91161.0,0.00499999]
[1745356329675,0.0065593,91165.0,91161.0,0.00499999]
[1745356329893,0.11375594,91164.0,91161.0,0.00499999]
[1745356330302,0.00654431,91163.0,91161.0,0.00499999]
[1745356330472,0.12030025,91163.0,91161.0,0.00699999]
[1745356331839,0.12030025,91163.0,91161.0,0.00499999]
[1745356332044,0.12030025,91163.0,91161.0,0.00699999]
[1745356332356,0.12030025,91163.0,91161.0,0.00799999]
[1745356332546,0.12030025,91163.0,91161.0,0.00999999]
[1745356337811,0.12130025,91163.0,91155.0,0.2194065]
[1745356338305,0.11475594,91163.0,91155.0,0.2194065]
[1745356338691,0.11475594,91163.0,91157.0,0.21940055]
[1745356339113,0.00640351,91162.0,91157.0,0.21940055]
[1745356339627,0.11475594,91163.0,91157.0,0.21940055]
[1745356340475,0.11475594,91163.0,91158.0,0.219398]
[1745356341388,0.11475594,91163.0,91157.0,0.22140055]
[1745356341886,0.11475594,91163.0,91157.0,0.21940055]
[1745356342316,0.11475594,91163.0,91158.0,0.001]
[1745356343578,0.11475594,91163.0,91157.0,0.21940055]
[1745356343773,0.11475594,91163.0,91157.0,0.002]
[1745356343975,0.00640351,91162.0,91158.0,0.21939914]
[1745356344555,0.00640351,91162.0,91158.0,0.22139914]
[1745356345107,0.00640351,91162.0,91158.0,0.002]
[1745356345321,0.00640351,91162.0,91158.0,0.003]
[1745356345437,0.11475594,91163.0,91158.0,0.001]
[1745356345637,0.11475594,91163.0,91157.0,0.21940156]
[1745356345842,0.11475594,91163.0,91158.0,0.001]
[1745356346734,0.11475594,91163.0,91157.0,0.21940156]
[1745356346931,0.11475594,91163.0,91158.0,0.22039843]
[1745356347137,0.11475594,91163.0,91158.0,0.22139843]
[1745356347554,0.11475594,91163.0,91158.0,0.22039843]
[1745356347768,0.11475594,91163.0,91159.0,0.21939522]
[1745356347912,0.11475594,91163.0,91160.0,0.21939387]
[1745356348115,0.11475594,91163.0,91159.0,0.21939522]
[1745356348442,0.11475594,91163.0,91158.0,0.22139912]
[1745356348749,0.11475594,91163.0,91158.0,0.22039797]
[1745356348937,0.00640351,91162.0,91158.0,0.22039797]
[1745356349338,0.00640351,91162.0,91158.0,0.21939797]
[1745356349719,0.11475594,91163.0,91158.0,0.22039797]
[1745356350116,0.11475594,91163.0,91159.0,0.22039627]
[1745356350341,0.11475594,91163.0,91159.0,0.001]
[1745356350559,0.11475594,91163.0,91159.0,0.21939669]
[1745356350911,0.11375594,91163.0,91159.0,0.21939669]
[1745356351116,0.11475594,91163.0,91158.0,0.22239879]
[1745356351315,0.11475594,91163.0,91158.0,0.22139879]
[1745356351522,0.11475594,91163.0,91159.0,0.001]
[1745356351952,0.11475594,91163.0,91158.0,0.21939879]
[1745356352454,0.11475594,91163.0,91157.0,0.21940137]
[1745356352674,0.11475594,91163.0,91156.0,0.21940276]
[1745356353294,0.11475594,91163.0,91158.0,0.002]
[1745356353724,0.11475594,91163.0,91149.0,0.21942071]
[1745356353725,0.11375594,91162.0,91151.0,0.219416]
[1745356353939,0.11375594,91162.0,91156.0,0.001]
[1745356354057,0.11375594,91162.0,91156.0,0.002]
[1745356354258,0.006424,91161.0,91156.0,0.002]
[1745356354483,0.11375594,91160.0,91156.0,0.001]
[1745356354906,0.00640901,91159.0,91156.0,0.001]
[1745356355219,0.12016495,91159.0,91149.0,0.6082302]
[1745356355426,0.12016495,91159.0,91158.0,0.001]
[1745356355634,0.11375594,91159.0,91151.0,0.003]
[1745356355775,0.12016495,91159.0,91151.0,0.003]
[1745356355975,0.11375594,91159.0,91156.0,0.001]
[1745356356287,0.00640152,91158.0,91156.0,0.001]
[1745356357375,0.00640152,91158.0,91151.0,0.22141556]
[1745356357575,0.11375594,91159.0,91156.0,0.001]
[1745356357891,0.00640152,91158.0,91156.0,0.001]
[1745356358319,0.00640152,91158.0,91151.0,0.21941556]
[1745356358521,0.00640152,91158.0,91156.0,0.001]
[1745356358722,0.11375594,91157.0,91156.0,0.001]
[1745356358928,0.12014997,91157.0,91156.0,0.001]
[1745356359233,0.12014997,91157.0,91149.0,0.2194187]
[1745356359435,0.12014997,91157.0,91151.0,0.002]
[1745356359583,0.12014997,91157.0,91151.0,0.005]
[1745356359782,0.11375594,91157.0,91151.0,0.003]
[1745356359983,0.11375594,91157.0,91156.0,0.001]
[1745356360179,0.12011421,91157.0,91156.0,0.001]
[1745356361443,0.12011421,91157.0,91149.0,0.22241889]
[1745356361736,0.12011421,91157.0,91151.0,0.002]
[1745356361956,0.11375594,91157.0,91151.0,0.22141612]
[1745356362115,0.11375594,91157.0,91149.0,0.21941889]
[1745356362116,0.11475594,91157.0,91150.0,0.21941853]
[1745356362292,0.11475594,91157.0,91156.0,0.001]
[1745356362696,0.11475594,91157.0,91149.0,0.21941889]
[1745356362697,0.12109248,91157.0,91149.0,0.21941889]
[1745356362924,0.12109248,91157.0,91156.0,0.001]
[1745356363131,0.11475594,91157.0,91156.0,0.001]
[1745356363328,0.12109248,91157.0,91156.0,0.001]
[1745356364649,0.12109248,91157.0,91156.0,0.002]
[1745356372058,0.11475594,91157.0,91156.0,0.002]
[1745356372563,0.12106899,91157.0,91156.0,0.002]
[1745356373698,0.11475594,91157.0,91156.0,0.002]
[1745356378229,0.12106899,91157.0,91156.0,0.002]
[1745356378405,0.11475594,91157.0,91156.0,0.002]
[1745356382307,0.12104173,91157.0,91156.0,0.002]
[1745356382518,0.11475594,91157.0,91156.0,0.002]
[1745356385451,0.12104173,91157.0,91156.0,0.002]
[1745356392118,0.12204173,91157.0,91156.0,0.002]
[1745356392327,0.00828579,91157.0,91156.0,0.002]
[1745356392576,0.002,91157.0,91156.0,0.002]
[1745356393719,0.00721215,91157.0,91156.0,0.002]
[1745356393925,0.002,91157.0,91156.0,0.002]
[1745356394147,0.00721215,91157.0,91156.0,0.002]
[1745356394355,0.002,91157.0,91156.0,0.002]
[1745356394949,0.00721215,91157.0,91156.0,0.002]
[1745356395149,0.002,91157.0,91156.0,0.002]
[1745356395370,0.00721215,91157.0,91156.0,0.002]
[1745356395572,0.002,91157.0,91156.0,0.002]
[1745356395771,0.00721215,91157.0,91156.0,0.002]
[1745356402785,0.44981063,91157.0,91156.0,0.002]
[1745356403356,0.23040894,91157.0,91156.0,0.002]
[1745356403561,0.23040894,91157.0,91156.0,0.001]
[1745356403762,0.24066711,91157.0,91156.0,0.001]
[1745356403991,0.24166711,91157.0,91156.0,0.001]
[1745356404800,0.01454085,91156.0,91130.0,0.25555787]
[1745356404974,0.01454085,91154.0,91131.0,0.42572725]
[1745356405157,0.01454085,91152.0,91131.0,0.42572725]
[1745356405356,0.11879019,91151.0,91131.0,0.42572725]
[1745356406192,0.11879019,91151.0,91131.0,0.43072725]
[1745356406575,0.11879019,91151.0,91131.0,0.43172725]
[1745356406788,0.11879019,91151.0,91131.0,0.43672725]
[1745356406991,0.11879019,91151.0,91131.0,0.02322725]
[1745356407197,0.11879019,91151.0,91131.0,0.01722725]
[1745356407441,0.12069482,91151.0,91131.0,0.02322725]
[1745356411283,0.12169482,91151.0,91131.0,0.02322725]
[1745356412498,0.01454085,91150.0,91131.0,0.02322725]
[1745356412644,0.01454085,91148.0,91131.0,0.02322725]
[1745356412843,0.12054273,91147.0,91131.0,0.02322725]
[1745356413266,0.12054273,91147.0,91131.0,0.01722725]
[1745356413757,0.12054273,91147.0,91131.0,0.01822725]
[1745356413961,0.12054273,91147.0,91131.0,0.01222725]
[1745356414192,0.12054273,91147.0,91130.0,0.25555787]
[1745356414357,0.12054273,91147.0,91131.0,0.006]
[1745356415119,0.12054273,91147.0,91131.0,0.01]
[1745356415320,0.12054273,91147.0,91131.0,0.006]
[1745356415543,0.12054273,91147.0,91131.0,0.004]
[1745356416926,0.12054273,91147.0,91130.0,0.25555787]
[1745356417118,0.12054273,91147.0,91131.0,0.006]
[1745356417699,0.12054273,91147.0,91131.0,0.01842546]
[1745356418295,0.12054273,91147.0,91131.0,0.02042546]
[1745356418698,0.12054273,91147.0,91131.0,0.01442546]
[1745356418860,0.01454085,91146.0,91131.0,0.01742546]
[1745356419026,0.12051049,91145.0,91131.0,0.01742546]
[1745356419633,0.12051049,91145.0,91131.0,0.01442546]
[1745356419852,0.12051049,91145.0,91131.0,0.01242546]
[1745356420063,0.12051049,91145.0,91131.0,0.003]